bitfinex-derivatives/quotes_BTCF0:USTF0_20250318
["timestamp","ask_amount","ask_price","bid_price","bid_amount"]
[1742278560589,0.06707236,82862.0,82861.0,0.53590868]
[1742278562898,0.18776456,82862.0,82861.0,0.37962868]
[1742278563099,0.18776456,82862.0,82861.0,0.49602868]
[1742278563404,0.06707236,82862.0,82861.0,0.49602868]
[1742278563603,0.18776456,82862.0,82861.0,0.49602868]
[1742278565101,0.06707236,82862.0,82861.0,0.49602868]
[1742278565401,0.18776456,82862.0,82861.0,0.49602868]
[1742278565803,0.18776456,82862.0,82861.0,0.4873336]
[1742278566391,0.18776456,82862.0,82861.0,0.1206936]
[1742278566598,0.1207024,82856.0,82855.0,0.0603508]
[1742278566799,0.1207024,82856.0,82855.0,0.0703508]
[1742278567000,0.1207024,82856.0,82855.0,0.1870708]
[1742278567200,0.12447476,82856.0,82855.0,0.0703508]
[1742278567496,0.18637476,82856.0,82855.0,0.0703508]
[1742278568093,0.42647236,82856.0,82853.0,0.00018105]
[1742278568294,0.1207199,82843.0,82842.0,0.21671356]
[1742278568502,0.1207199,82843.0,82842.0,0.06701356]
[1742278568900,0.1207242,82840.0,82839.0,0.1207246]
[1742278569094,0.1207242,82840.0,82837.0,0.18884331]
[1742278569095,0.1207272,82838.0,82837.0,0.060364]
[1742278569402,0.1207315,82835.0,82834.0,0.52708536]
[1742278569597,0.1207315,82835.0,82834.0,0.40635236]
[1742278570193,0.27450386,82835.0,82834.0,0.28963236]
[1742278572096,0.34030386,82835.0,82834.0,0.28963236]
[1742278572996,0.34030386,82835.0,82829.0,0.00018105]
[1742278572997,0.1207388,82830.0,82829.0,0.00018105]
[1742278573201,0.48531116,82830.0,82829.0,0.00018105]
[1742278573901,0.51831116,82830.0,82829.0,0.00018105]
[1742278574097,0.51831116,82830.0,82829.0,0.00118105]
[1742278575704,0.51831116,82830.0,82829.0,0.00218105]
[1742278576507,0.1811423,82816.0,82815.0,0.1207594]
[1742278576705,0.1811423,82816.0,82815.0,0.5174394]
[1742278576907,0.2452423,82816.0,82815.0,0.5174394]
[1742278577403,0.24901466,82816.0,82815.0,0.5174394]
[1742278577715,0.24901466,82816.0,82815.0,0.5224394]
[1742278578404,0.24901466,82816.0,82815.0,0.005]
[1742278578908,0.24901466,82816.0,82815.0,0.009]
[1742278579700,0.24901466,82816.0,82815.0,0.004]
[1742278579895,0.24901466,82816.0,82815.0,0.003]
[1742278580208,0.24901466,82816.0,82815.0,0.006]
[1742278580710,0.24901466,82816.0,82815.0,0.002]
[1742278581010,0.24901466,82816.0,82815.0,0.004]
[1742278581411,0.06415256,82816.0,82815.0,0.3030407]
[1742278581612,0.06415256,82816.0,82815.0,0.6134407]
[1742278582002,0.00159131,82816.0,82815.0,0.9742407]
[1742278582603,0.1207523,82821.0,82820.0,0.1207534]
[1742278582799,0.1317654,82821.0,82820.0,0.4007534]
[1742278583503,0.13176777,82821.0,82820.0,0.4639534]
[1742278583912,0.01101547,82821.0,82820.0,0.4639534]
[1742278584414,0.13176737,82821.0,82820.0,0.4639534]
[1742278584809,0.1207519,82821.0,82820.0,0.4639534]
[1742278587614,0.1207519,82821.0,82820.0,0.0632]
[1742278587805,0.1207519,82821.0,82809.0,0.1207684]
[1742278587806,0.0603816,82814.0,82809.0,0.1207684]
[1742278588001,0.1207665,82811.0,82810.0,0.3586899]
[1742278588310,0.1207665,82811.0,82810.0,0.4217899]
[1742278588711,0.1536643,82813.0,82812.0,0.1207651]
[1742278588914,0.1207643,82813.0,82812.0,0.1207651]
[1742278590001,0.1207643,82813.0,82812.0,0.1227651]
[1742278590704,0.1207643,82813.0,82812.0,0.1257651]
[1742278591306,0.1510643,82813.0,82812.0,0.1257651]
[1742278592304,0.1510643,82813.0,82812.0,0.005]
[1742278592616,0.1824643,82813.0,82812.0,0.005]
[1742278593906,0.19339821,82813.0,82812.0,0.005]
[1742278594218,0.19717343,82813.0,82812.0,0.1257651]
[1742278594616,0.19717343,82813.0,82812.0,0.005]
[1742278594919,0.20321386,82813.0,82812.0,0.1868651]
[1742278595308,0.20321386,82813.0,82812.0,0.0661]
[1742278596207,0.20321386,82813.0,82812.0,0.0361]
[1742278596412,0.20321386,82813.0,82812.0,0.1568651]
[1742278596716,0.20321386,82813.0,82812.0,0.0361]
[1742278596910,0.20321386,82813.0,82812.0,0.00891544]
[1742278597115,0.0603847,82810.0,82807.0,5e-08]
[1742278597313,0.4815709,82808.0,82807.0,5e-08]
[1742278597616,0.50232046,82808.0,82807.0,5e-08]
[1742278597821,0.70428655,82808.0,82807.0,5e-08]
[1742278598204,0.55428655,82808.0,82807.0,5e-08]
[1742278598409,0.69824612,82808.0,82807.0,5e-08]
[1742278599008,1.39194612,82808.0,82807.0,5e-08]
[1742278599415,1.39494612,82808.0,82807.0,5e-08]
[1742278600609,1.39994612,82808.0,82807.0,5e-08]
[1742278602311,1.45867847,82808.0,82807.0,5e-08]
[1742278603018,1.18867847,82808.0,82807.0,5e-08]
[1742278603518,1.03867847,82808.0,82807.0,5e-08]
[1742278603822,1.18867847,82808.0,82807.0,5e-08]
[1742278604023,0.1207928,82793.0,82792.0,0.031]
[1742278604218,0.4815928,82793.0,82792.0,0.031]
[1742278604427,0.120803,82786.0,82785.0,0.0327]
[1742278604720,0.120803,82786.0,82785.0,0.0628]
[1742278605413,0.183703,82786.0,82785.0,0.0628]
[1742278605716,0.544503,82786.0,82785.0,0.0628]
[1742278605915,0.54827958,82786.0,82785.0,0.0628]
[1742278606122,0.55227958,82786.0,82785.0,0.0628]
[1742278611321,0.52017958,82786.0,82785.0,0.0628]
[1742278613225,0.48937958,82786.0,82785.0,0.4336044]
[1742278613725,0.12857958,82786.0,82785.0,0.4336044]
[1742278614728,0.00777658,82786.0,82785.0,0.4436044]
[1742278614927,0.12857958,82786.0,82785.0,0.4436044]
[1742278615126,0.12857958,82786.0,82785.0,0.4336044]
[1742278615319,0.00777658,82786.0,82785.0,0.4436044]
[1742278615521,0.181191,82793.0,82792.0,0.1207942]
[1742278615723,0.181191,82793.0,82792.0,0.4896342]
[1742278616320,0.181191,82793.0,82792.0,0.5531342]
[1742278616732,0.184191,82793.0,82792.0,0.5531342]
[1742278617418,0.183191,82793.0,82792.0,0.5531342]
[1742278617625,0.0623968,82793.0,82792.0,0.5531342]
[1742278617823,0.002,82793.0,82792.0,0.5631342]
[1742278618627,0.002,82793.0,82792.0,1.1539342]
[1742278619029,0.1207808,82802.0,82793.0,0.1207928]
[1742278619230,0.0603884,82804.0,82793.0,0.4839928]
[1742278619734,0.1207784,82803.0,82793.0,0.4839928]
[1742278619936,0.48177246,82794.0,82793.0,0.25]
[1742278620135,0.1208088,82782.0,82781.0,0.0303]
[1742278620334,0.119819,82775.0,82774.0,0.11912]
[1742278620635,0.119819,82775.0,82774.0,0.35924]
[1742278621021,0.118819,82775.0,82774.0,0.4800605]
[1742278621421,0.118819,82775.0,82774.0,0.4802605]
[1742278622534,0.152119,82775.0,82774.0,0.4802605]
[1742278622728,0.152119,82775.0,82774.0,0.4812605]
[1742278624020,0.152119,82775.0,82774.0,0.5436805]
[1742278624226,0.152119,82775.0,82774.0,0.42286]
[1742278624533,0.152119,82775.0,82774.0,0.18302]
[1742278625122,0.152119,82775.0,82774.0,0.3038405]
[1742278625329,0.118819,82775.0,82774.0,0.4643205]
[1742278625534,0.118819,82775.0,82774.0,0.5838405]
[1742278629438,0.118819,82775.0,82774.0,0.5836405]
[1742278630139,0.149119,82775.0,82774.0,0.5836405]
[1742278630639,0.181819,82775.0,82774.0,0.3435]
[1742278630835,0.181819,82775.0,82774.0,0.43024]
[1742278631035,0.181819,82775.0,82774.0,0.5510605]
[1742278631240,0.181819,82775.0,82774.0,0.43024]
[1742278631545,0.181819,82775.0,82774.0,0.4302]
[1742278632435,0.181819,82775.0,82774.0,0.001]
[1742278632636,0.181819,82775.0,82774.0,0.1218205]
[1742278632944,0.29406939,82775.0,82774.0,0.1518205]
[1742278633242,0.30513237,82775.0,82774.0,0.1518205]
[1742278633937,0.30513237,82775.0,82774.0,0.031]
[1742278634131,0.30513237,82775.0,82774.0,0.1518205]
[1742278634336,0.30513237,82775.0,82774.0,0.001]
[1742278635136,0.30513237,82775.0,82774.0,0.1218205]
[1742278635827,0.30513237,82775.0,82774.0,0.001]
[1742278636029,0.30513237,82775.0,82774.0,0.1218205]
[1742278636229,0.30513237,82775.0,82774.0,0.001]
[1742278636834,0.30513237,82775.0,82774.0,0.1218205]
[1742278637043,0.30513237,82775.0,82774.0,0.0341]
[1742278637236,0.19665883,82775.0,82774.0,0.0341]
[1742278637544,0.19665883,82775.0,82774.0,0.001]
[1742278637754,0.18559585,82775.0,82774.0,0.001]
[1742278638041,0.19674572,82775.0,82774.0,0.001]
[1742278639842,0.19674572,82775.0,82774.0,0.1218205]
[1742278640237,0.19674572,82775.0,82774.0,0.0331]
[1742278640540,0.19674572,82775.0,82774.0,0.12168]
[1742278640845,0.34109636,82775.0,82774.0,0.12168]
[1742278643946,0.37159636,82775.0,82774.0,0.12168]
[1742278645141,0.36044649,82775.0,82774.0,0.12168]
[1742278645543,0.21609585,82775.0,82774.0,0.12168]
[1742278647045,0.212319,82775.0,82774.0,0.12168]
[1742278649157,0.22333733,82775.0,82774.0,0.12168]
[1742278649741,0.2233511,82775.0,82774.0,0.12168]
[1742278650144,0.22712816,82775.0,82774.0,0.12168]
[1742278651148,0.19662816,82775.0,82774.0,0.2425005]
[1742278651837,0.19662816,82775.0,82774.0,0.2726005]
[1742278652040,0.1928511,82775.0,82774.0,0.2726005]
[1742278652248,0.181819,82775.0,82774.0,0.2726005]
[1742278652852,0.181819,82775.0,82774.0,0.15178]
[1742278653148,0.181819,82775.0,82774.0,0.1519205]
[1742278653448,0.181819,82775.0,82774.0,0.0311]
[1742278653841,0.18559608,82775.0,82774.0,0.0311]
[1742278654237,0.1969453,82775.0,82774.0,0.0311]
[1742278654853,0.1969453,82775.0,82774.0,0.1519205]
[1742278655042,0.0454263,82775.0,82774.0,0.3368605]
[1742278655445,0.1662453,82775.0,82774.0,0.3368605]
[1742278655954,0.1979453,82775.0,82774.0,0.3368605]
[1742278657751,0.0141263,82775.0,82774.0,0.9776605]
[1742278658145,0.00277708,82775.0,82774.0,0.9776605]
[1742278658954,0.00277708,82775.0,82774.0,1.2576605]
[1742278659160,0.00277708,82775.0,82774.0,1.2676605]
[1742278659345,0.00277708,82775.0,82774.0,0.9776605]
[1742278661447,0.00277708,82775.0,82774.0,0.9476605]
[1742278661654,0.00277708,82775.0,82774.0,1.0276605]
[1742278663150,0.00277708,82775.0,82774.0,1.0876605]
[1742278663345,8e-08,82775.0,82774.0,1.4076605]
[1742278663545,8e-08,82775.0,82774.0,1.0274205]
[1742278664859,8e-08,82775.0,82774.0,1.2974205]
[1742278665052,8e-08,82775.0,82774.0,1.0274205]
[1742278666060,0.10856796,82778.0,82777.0,0.1208161]
[1742278666261,0.10856796,82778.0,82777.0,0.4308161]
[1742278667164,0.10856796,82778.0,82777.0,0.7916161]
[1742278668359,0.1208046,82785.0,82784.0,0.1208059]
[1742278668666,0.1208046,82785.0,82784.0,0.5121259]
[1742278668862,0.1531046,82785.0,82784.0,0.5121259]
[1742278669966,0.0343,82785.0,82784.0,0.5121259]
[1742278670161,0.0353,82785.0,82784.0,0.5121259]
[1742278670655,0.1561044,82785.0,82784.0,0.5121259]
[1742278671052,0.0353,82785.0,82784.0,0.5121259]
[1742278671261,0.003,82785.0,82784.0,0.5121259]
[1742278673460,0.003,82785.0,82784.0,0.6106259]
[1742278675556,0.003,82785.0,82784.0,0.9714259]
[1742278676265,0.003,82785.0,82784.0,1.2314259]
[1742278676461,0.003,82785.0,82784.0,0.9714259]
[1742278677672,0.003,82785.0,82784.0,1.8885059]
[1742278679067,0.1238044,82785.0,82784.0,1.8885059]
[1742278679366,0.19815056,82785.0,82784.0,1.6686859]
[1742278679664,0.19815056,82785.0,82784.0,1.5196059]
[1742278680262,0.19815056,82785.0,82784.0,1.3988]
[1742278680570,0.19815056,82785.0,82784.0,1.5196059]
[1742278680763,0.20192673,82785.0,82784.0,1.27788]
[1742278680964,0.20192673,82785.0,82784.0,0.3608]
[1742278681568,0.20192673,82785.0,82784.0,0.4816059]
[1742278681569,0.20220139,82785.0,82784.0,0.4816059]
[1742278682667,0.20220139,82785.0,82784.0,0.3608]
[1742278682870,0.1208205,82775.0,82774.0,0.1208197]
[1742278683072,0.1208205,82775.0,82770.0,0.34937121]
[1742278683073,0.1208249,82771.0,82770.0,0.28895871]
[1742278683370,0.13592189,82771.0,82770.0,0.53114501]
[1742278683570,0.13584912,82771.0,82770.0,0.53114501]
[1742278683965,0.13584912,82771.0,82770.0,0.41031871]
[1742278684270,0.1188278,82769.0,82768.0,0.006]
[1742278684458,0.1208395,82761.0,82760.0,0.28895871]
[1742278684663,0.1208482,82755.0,82754.0,0.54247099]
[1742278684863,0.13209625,82755.0,82754.0,0.54247099]
[1742278685074,0.13215896,82755.0,82754.0,0.54247099]
[1742278685266,0.15450606,82755.0,82754.0,0.54247099]
[1742278685772,0.15350606,82755.0,82754.0,0.42162229]
[1742278686269,0.03365786,82755.0,82754.0,0.66262229]
[1742278686571,0.03165786,82755.0,82754.0,0.66262229]
[1742278686962,0.03165786,82755.0,82754.0,0.72832229]
[1742278687273,0.00377617,82755.0,82754.0,0.72832229]
[1742278687464,0.00377617,82755.0,82754.0,0.72932229]
[1742278687660,0.12462437,82755.0,82754.0,0.72932229]
[1742278687871,0.12462437,82755.0,82754.0,0.60319839]
[1742278688170,0.12462437,82755.0,82754.0,0.36319839]
[1742278688667,0.15672437,82755.0,82754.0,0.36319839]
[1742278689167,0.15672437,82755.0,82754.0,0.002]
[1742278694265,0.18812437,82755.0,82754.0,0.002]
[1742278696070,0.18812437,82755.0,82754.0,0.1228497]
[1742278696267,0.18812437,82755.0,82754.0,0.3628497]
[1742278696574,0.18812437,82755.0,82754.0,0.242]
[1742278698575,0.18812437,82755.0,82754.0,0.002]
[1742278700780,0.20003995,82755.0,82754.0,0.002]
[1742278700977,0.1208526,82752.0,82751.0,0.12352]
[1742278701484,0.12462877,82752.0,82751.0,0.12352]
[1742278701683,0.18852877,82752.0,82751.0,0.12352]
[1742278702380,0.179287,82750.0,82749.0,0.1208557]
[1742278702777,0.18306317,82750.0,82749.0,0.1208557]
[1742278702983,0.18306317,82750.0,82749.0,0.1518557]
[1742278703186,0.18306317,82750.0,82749.0,0.1839557]
[1742278703379,0.18206317,82750.0,82749.0,0.0631]
[1742278704186,0.18206317,82750.0,82749.0,0.002]
[1742278704881,0.18206317,82750.0,82749.0,0.004]
[1742278705489,0.18206317,82750.0,82749.0,0.190157]
[1742278705683,0.18206317,82750.0,82749.0,0.0693]
[1742278705878,0.18206317,82750.0,82749.0,0.0366]
[1742278706078,0.18206317,82750.0,82749.0,0.004]
[1742278706990,0.18206317,82750.0,82749.0,0.124857]
[1742278707291,0.18206317,82750.0,82749.0,0.0367]
[1742278708488,0.18206317,82750.0,82749.0,0.2867]
[1742278708789,0.18206317,82750.0,82749.0,0.3196]
[1742278709089,0.18206317,82750.0,82749.0,0.440457]
[1742278709280,0.29026084,82750.0,82749.0,0.440457]
[1742278710187,0.29026084,82750.0,82749.0,0.3196]
[1742278710885,0.29026084,82750.0,82749.0,0.1696]
[1742278711280,0.29026084,82750.0,82749.0,0.1367]
[1742278712176,0.29026084,82750.0,82749.0,0.1673]
[1742278712883,0.18206317,82750.0,82749.0,0.288157]
[1742278715780,0.18206317,82750.0,82749.0,0.2881449]
[1742278716081,0.24082406,82750.0,82749.0,0.2881449]
[1742278716482,0.24082406,82750.0,82749.0,0.1673]
[1742278717297,0.24082406,82750.0,82749.0,0.1367]
[1742278717496,0.24082406,82750.0,82749.0,0.004]
[1742278718695,0.24082406,82750.0,82749.0,0.0343]
[1742278721393,0.24082406,82750.0,82749.0,0.0676]
[1742278722306,0.24686897,82750.0,82749.0,0.0403979]
[1742278722497,0.258176,82750.0,82749.0,0.0403979]
[1742278722698,0.258176,82750.0,82749.0,0.0343]
[1742278722888,0.258176,82750.0,82749.0,0.001]
[1742278723393,0.25817611,82750.0,82749.0,0.001]
[1742278724099,0.24686897,82750.0,82749.0,0.001]
[1742278724398,0.25837115,82750.0,82749.0,0.001]
[1742278724695,0.24686897,82750.0,82749.0,0.001]
[1742278724901,0.25822552,82750.0,82749.0,0.001]
[1742278725693,0.0604224,82749.0,82744.0,0.0332]
[1742278725895,0.1208522,82744.0,82729.0,0.0604364]
[1742278726095,0.1208683,82733.0,82732.0,0.21691477]
[1742278726301,0.1208683,82733.0,82719.0,0.43303183]
[1742278726302,0.1208756,82728.0,82719.0,0.43303183]
[1742278726497,0.1508547,82728.0,82720.0,0.0633]
[1742278726704,0.12088,82725.0,82719.0,0.43303183]
[1742278727003,0.1188873,82720.0,82719.0,0.43303183]
[1742278727199,0.13024385,82720.0,82719.0,0.43303183]
[1742278727389,0.13011822,82720.0,82719.0,0.43303183]
[1742278727812,0.1188873,82720.0,82719.0,0.43303183]
[1742278728299,0.12266347,82720.0,82719.0,0.43303183]
[1742278728501,0.15336347,82720.0,82719.0,0.49653183]
[1742278728895,0.15136347,82720.0,82719.0,0.49653183]
[1742278729097,0.15136347,82720.0,82719.0,0.61742053]
[1742278729297,0.1168873,82720.0,82719.0,0.74282053]
[1742278729499,0.1168873,82720.0,82719.0,1.10362053]
[1742278729894,0.0604395,82727.0,82726.0,0.1208785]
[1742278730195,0.0604395,82727.0,82726.0,0.5264385]
[1742278730793,0.0604347,82733.0,82728.0,0.1208756]
[1742278730997,0.0604347,82733.0,82732.0,0.1208697]
[1742278731300,0.0604347,82733.0,82732.0,0.3908697]
[1742278731503,0.0604347,82733.0,82732.0,0.27]
[1742278732790,0.0634347,82733.0,82732.0,0.27]
[1742278733206,0.0604347,82733.0,82732.0,0.27]
[1742278733402,0.0634347,82733.0,82732.0,0.27]
[1742278733893,0.0664347,82733.0,82732.0,0.27]
[1742278734502,0.0634347,82733.0,82732.0,0.27]
[1742278734693,0.0674347,82733.0,82732.0,0.27]
[1742278735902,0.0684347,82733.0,82732.0,0.27]
[1742278736790,0.24902671,82733.0,82732.0,0.27]
[1742278738495,0.24802671,82733.0,82732.0,0.27]
[1742278738704,0.24802671,82733.0,82732.0,0.3908697]
[1742278739005,0.24502671,82733.0,82732.0,0.3908697]
[1742278739201,0.24902671,82733.0,82732.0,0.3908697]
[1742278739999,0.24893536,82733.0,82732.0,0.3908697]
[1742278741101,0.06834335,82733.0,82732.0,0.3908697]
[1742278741302,0.06834335,82733.0,82732.0,0.40280741]
[1742278743203,0.06834335,82733.0,82732.0,0.3908697]
[1742278743597,0.06834335,82733.0,82732.0,0.27]
[1742278743799,0.09884335,82733.0,82732.0,0.3908697]
[1742278744207,0.09884335,82733.0,82732.0,0.4227697]
[1742278744410,0.09884335,82733.0,82732.0,0.3019]
[1742278744411,0.13014335,82733.0,82732.0,0.3019]
[1742278745600,0.13014335,82733.0,82732.0,0.42646]
[1742278746010,0.13014335,82733.0,82732.0,0.3019]
[1742278746212,0.13014335,82733.0,82732.0,0.42642]
[1742278747814,0.13014335,82733.0,82732.0,0.39452]
[1742278750704,0.13014335,82733.0,82732.0,0.12452]
[1742278751707,0.1208712,82731.0,82729.0,0.0307]
[1742278751903,0.1208771,82727.0,82726.0,1.27852]
[1742278752304,0.2153771,82727.0,82726.0,1.27852]
[1742278753115,0.1829771,82727.0,82726.0,1.27852]
[1742278753310,0.1849771,82727.0,82726.0,1.27852]
[1742278753516,0.1849771,82727.0,82726.0,1.3993985]
[1742278753820,0.1869771,82727.0,82726.0,1.4622985]
[1742278754616,0.1919771,82727.0,82726.0,1.4622985]
[1742278755403,0.24575236,82727.0,82726.0,1.4622985]
[1742278755612,0.24875236,82727.0,82726.0,1.4622985]
[1742278757708,0.18665236,82727.0,82726.0,1.7522985]
[1742278758009,0.18665236,82727.0,82726.0,1.8522985]
[1742278758407,0.06577526,82727.0,82726.0,1.8522985]
[1742278758606,0.00018127,82736.0,82731.0,0.0604352]
[1742278758917,0.28509178,82735.0,82734.0,0.4816668]
[1742278759114,0.28509178,82735.0,82734.0,0.7916668]
[1742278759514,0.28509178,82735.0,82734.0,1.0516668]
[1742278759715,0.16422638,82735.0,82734.0,0.7816668]
[1742278760218,0.16822638,82735.0,82734.0,0.7816668]
[1742278760724,0.16822638,82735.0,82734.0,1.0216668]
[1742278761012,0.0900463,82740.0,82739.0,0.1208595]
[1742278761215,0.2109044,82740.0,82739.0,0.5549395]
[1742278761716,0.2109044,82740.0,82739.0,0.5668498]
[1742278761919,0.1208581,82740.0,82739.0,0.5668498]
[1742278762118,0.1208581,82740.0,82739.0,0.6019498]
[1742278762315,0.1298581,82740.0,82739.0,0.6019498]
[1742278762816,0.1298581,82740.0,82739.0,0.6319498]
[1742278763020,0.009,82740.0,82739.0,0.6019498]
[1742278763222,0.009,82740.0,82739.0,0.6319498]
[1742278764316,0.15621365,82742.0,82741.0,0.1208566]
[1742278764515,0.15621365,82742.0,82741.0,0.8308566]
[1742278764715,0.15621365,82742.0,82741.0,0.7308566]
[1742278765014,0.15621365,82742.0,82741.0,0.8408566]
[1742278765418,0.14477494,82743.0,82742.0,0.1208551]
[1742278765617,0.14477494,82743.0,82742.0,0.5840551]
[1742278766517,0.14877494,82743.0,82742.0,0.5930907]
[1742278767315,0.15277494,82743.0,82742.0,0.5930907]
[1742278767924,0.15277494,82743.0,82742.0,0.5030907]
[1742278768228,0.15277494,82743.0,82742.0,0.6030907]
[1742278769519,0.15277494,82743.0,82742.0,0.5930907]
[1742278769726,0.15277494,82743.0,82742.0,0.6230907]
[1742278770230,0.27362864,82743.0,82742.0,0.4830907]
[1742278770427,0.1903537,82743.0,82742.0,0.4830907]
[1742278770827,0.1903537,82743.0,82742.0,0.6065707]
[1742278771520,0.1903537,82743.0,82742.0,0.6365707]
[1742278771932,0.1903537,82743.0,82742.0,0.6364507]
[1742278773727,0.1863537,82743.0,82742.0,0.6364507]
[1742278774131,0.1833537,82743.0,82742.0,0.6364507]
[1742278774831,0.1853537,82743.0,82742.0,0.6364507]
[1742278775837,0.1873537,82743.0,82742.0,0.6364507]
[1742278776632,0.1863537,82743.0,82742.0,0.6364507]
[1742278777240,0.1853537,82743.0,82742.0,0.6364507]
[1742278778023,0.1863537,82743.0,82742.0,0.6364507]
[1742278778824,0.1853537,82743.0,82742.0,0.6364507]
[1742278779025,0.1873537,82743.0,82742.0,0.6364507]
[1742278780425,0.1873537,82743.0,82742.0,0.6052507]
[1742278781423,0.1873537,82743.0,82742.0,0.9660507]
[1742278783834,0.1873537,82743.0,82742.0,0.9654507]
[1742278787434,0.1873537,82743.0,82742.0,0.9346507]
[1742278787631,0.1873537,82743.0,82742.0,0.9034507]
[1742278787842,0.23021958,82743.0,82742.0,0.3908]
[1742278788133,0.2178537,82743.0,82742.0,0.3608]
[1742278789138,0.2178537,82743.0,82742.0,0.4816551]
[1742278791339,0.1873537,82743.0,82742.0,0.7216551]
[1742278793342,0.24611629,82743.0,82742.0,0.7216551]
[1742278794348,0.24611629,82743.0,82742.0,0.8438151]
[1742278796645,0.24611629,82743.0,82742.0,0.9978151]
[1742278796842,0.24611629,82743.0,82742.0,1.0578151]
[1742278797146,0.1873537,82743.0,82742.0,1.0578151]
[1742278798051,0.1863537,82743.0,82742.0,1.0378151]
[1742278798643,0.0635,82743.0,82742.0,0.9378151]
[1742278798950,0.003,82743.0,82742.0,1.03672365]
[1742278799148,0.003,82743.0,82742.0,1.29672365]
[1742278799446,0.18108624,82745.0,82744.0,0.1208522]
[1742278799651,0.18108624,82745.0,82744.0,1.1808522]
[1742278800151,0.05876134,82745.0,82744.0,1.1808522]
[1742278800451,0.18111868,82751.0,82744.0,1.31103075]
[1742278800638,0.21734242,82758.0,82757.0,0.1208332]
[1742278800844,0.21734242,82758.0,82757.0,2.5612332]
[1742278801547,0.21734242,82758.0,82757.0,2.3012332]
[1742278802648,0.21934242,82758.0,82757.0,2.3012332]
[1742278803745,0.34017422,82758.0,82757.0,2.3012332]
[1742278803948,0.28244242,82758.0,82757.0,2.3012332]
[1742278804249,0.1859318,82758.0,82757.0,1.85036]
[1742278804554,0.1859318,82758.0,82757.0,1.54976]
[1742278804555,0.1869318,82758.0,82757.0,1.54976]
[1742278804755,0.1869318,82758.0,82757.0,1.28976]
[1742278807343,0.1869318,82758.0,82757.0,1.4105932]
[1742278809753,0.1869318,82758.0,82757.0,1.28976]
[1742278810154,0.1869318,82758.0,82757.0,1.4105932]
[1742278810569,0.1869318,82758.0,82757.0,1.28976]
[1742278810963,0.1869318,82758.0,82757.0,1.4105932]
[1742278812873,0.1869318,82758.0,82757.0,1.28976]
[1742278813060,0.1869318,82758.0,82757.0,1.4105932]
[1742278814071,0.1869318,82758.0,82757.0,1.4405932]
[1742278814765,0.1869318,82758.0,82757.0,1.31976]
[1742278816969,0.1869318,82758.0,82757.0,1.4405932]
[1742278817366,0.1869318,82758.0,82757.0,1.4706932]
[1742278818161,0.1869318,82758.0,82757.0,1.34986]
[1742278818971,0.1869318,82758.0,82757.0,1.4706932]
[1742278822164,0.1869318,82758.0,82757.0,1.4699332]
[1742278822763,0.1869318,82758.0,82757.0,1.4700132]
[1742278824870,0.0661,82758.0,82757.0,2.2608132]
[1742278825066,0.003,82758.0,82757.0,2.2608132]
[1742278825971,0.003,82758.0,82757.0,2.1508132]
[1742278826870,0.003,82758.0,82757.0,2.4008132]
[1742278827069,0.003,82758.0,82757.0,2.1508132]
[1742278828677,0.003,82758.0,82757.0,2.3808132]
[1742278828874,0.003,82758.0,82757.0,2.1508132]
[1742278829074,0.003,82758.0,82757.0,2.4108132]
[1742278829578,0.003,82758.0,82757.0,2.6708132]
[1742278829777,0.00018127,82766.0,82765.0,0.1208216]
[1742278829973,0.00018127,82766.0,82765.0,1.6131016]
[1742278830167,7e-08,82766.0,82765.0,1.7631016]
[1742278830364,7e-08,82766.0,82765.0,1.8282016]
[1742278830675,0.2168899,82784.0,82783.0,0.1207953]
[1742278830987,0.2168899,82788.0,82787.0,0.1207894]
[1742278831276,0.2168899,82788.0,82787.0,0.7307894]
[1742278831572,0.2168899,82788.0,82787.0,0.7507894]
[1742278831773,0.2168899,82788.0,82787.0,0.7407894]
[1742278831973,0.2168899,82788.0,82787.0,0.75283506]
[1742278833472,0.2178899,82788.0,82787.0,0.75283506]
[1742278834380,0.2178899,82788.0,82787.0,0.7618312]
[1742278835579,0.001,82788.0,82787.0,0.7618312]
[1742278837883,0.001,82788.0,82787.0,0.8518312]
[1742278838088,0.001,82788.0,82787.0,0.8718312]
[1742278838277,0.001,82788.0,82787.0,0.7618312]
[1742278838979,0.00018127,82796.0,82795.0,0.1207778]
[1742278839288,0.00018127,82796.0,82795.0,1.3831378]
[1742278839489,0.00018127,82796.0,82795.0,1.1331378]
[1742278839689,0.00018127,82796.0,82795.0,1.2431378]
[1742278840291,0.00218127,82796.0,82795.0,1.2431378]
[1742278840589,0.00218127,82796.0,82795.0,1.1331378]
[1742278841192,0.00218127,82796.0,82795.0,0.8531378]
[1742278841377,0.00218127,82796.0,82795.0,0.9531378]
[1742278841573,0.00218127,82796.0,82795.0,0.8531378]
[1742278841777,0.00218127,82796.0,82795.0,0.9531378]
[1742278842286,0.06528127,82796.0,82795.0,0.9531378]
[1742278848398,0.06528127,82796.0,82795.0,0.9842378]
[1742278852583,0.06528127,82796.0,82795.0,1.0165378]
[1742278854599,0.06528127,82796.0,82795.0,1.2665378]
[1742278855802,0.0326,82809.0,82808.0,0.1207709]
[1742278856007,0.0326,82809.0,82808.0,0.9522509]
[1742278856301,0.0326,82809.0,82808.0,1.0171509]
[1742278856599,0.0326,82809.0,82808.0,0.9843509]
[1742278856787,0.1533694,82809.0,82808.0,0.8522509]
[1742278856991,0.1553694,82809.0,82808.0,0.86411525]
[1742278857192,0.1553694,82809.0,82808.0,0.50331525]
[1742278857600,0.0669,82809.0,82808.0,0.50331525]
[1742278858991,0.1876694,82809.0,82808.0,0.50331525]
[1742278859200,0.2205694,82809.0,82808.0,0.50331525]
[1742278859903,0.0998,82809.0,82808.0,0.50331525]
[1742278860489,0.2205694,82809.0,82808.0,0.25]
[1742278860795,0.1207811,82801.0,82800.0,0.24152076]
[1742278860996,0.1207811,82801.0,82800.0,0.25344787]
[1742278861297,0.1207811,82801.0,82800.0,0.24152076]
[1742278861692,0.1859811,82801.0,82800.0,0.24152076]
[1742278862590,0.1859811,82801.0,82800.0,0.00018116]
[1742278862898,0.1859811,82801.0,82791.0,0.1207947]
[1742278862899,0.1207971,82792.0,82791.0,0.1207947]
[1742278865300,0.42512001,82794.0,82793.0,0.1207928]
[1742278865500,0.4234,82794.0,82793.0,0.1207928]
[1742278865698,0.0626,82794.0,82793.0,0.4234928]
[1742278866107,0.0626,82794.0,82793.0,0.4551928]
[1742278866404,0.1833913,82794.0,82793.0,0.3907928]
[1742278866595,0.1833913,82794.0,82793.0,0.1207928]
[1742278866793,0.1207942,82792.0,82791.0,0.0603971]
[1742278866996,0.1207942,82792.0,82791.0,0.2415557]
[1742278867507,0.0565,82792.0,82791.0,0.2415557]
[1742278867704,0.1772942,82792.0,82791.0,0.2415557]